[Event "5th EKA IIFL Investment 2019"]
[Site "Mumbai"]
[Date "2020.01.05"]
[Round "7.51"]
[White "Pranav Vijay"]
[Black "Madjidov, Jasur"]
[Result "1/2-1/2"]
[ECO "B36"]
[WhiteElo "2265"]
[BlackElo "2053"]
[Annotator "NA"]
[PlyCount "112"]
[EventDate "2019.12.30"]
[EventType "swiss"]
[EventCountry "IND"]
[SourceTitle "playchess.com"]
[Source "ChessBase"]
[SourceQuality "1"]
[TimeControl "40/5400+30:1800+30"]

1. e4 {[%emt 0:01:07]} c5 {[%emt 0:00:00]} 2. Nf3 {[%emt 0:00:08]} Nc6 {[%emt 0:00:00]} 3. d4 {[%emt 0:00:11]} cxd4 {[%emt 0:00:00]} 4. Nxd4 {[%emt 0:00:08]} g6 {[%emt 0:00:00]} 5. c4 {[%emt 0:00:06]} Nf6 {[%emt 0:00:06]} 6. Nc3 {[%emt 0:00:24]} d6 {[%emt 0:00:08]} 7. Be2 {[%emt 0:00:40]} Nxd4 {[%emt 0:00:09]} 8. Qxd4 {[%emt 0:00:08]} Bg7 {[%emt 0:00:10]} 9. Be3 {[%emt 0:00:42]} O-O {[%emt 0:00:11]} 10. Qd2 {[%emt 0:00:34]} Be6 {[%emt 0:00:14]} 11. O-O {[%emt 0:01:17]} Qa5 {[%emt 0:06:03]} 12. Rfc1 {[%emt 0:03:55]} Rfc8 {[%emt 0:01:34]} 13. b3 {[%emt 0:00:34]} Ng4 {[%emt 0:14:42]} 14. Bg5 {[%emt 0:00:00]} b5 {[%emt 0:13:15]} 15. h3 {[%emt 0:23:20]} b4 {[%emt 0:04:47]} 16. Nd5 {[%emt 0:00:40]} Bxd5 {[%emt 0:01:11]} 17. Bxg4 {[%emt 0:00:00]} Be6 {[%emt 0:00:00]} 18. Be2 {[%emt 0:01:00]} Bd5 {[%emt 0:00:00]} 19. Bg4 {[%emt 0:00:00]} Be6 {[%emt 0:00:00]} 20. Be2 {[%emt 0:01:00]} Bd5 {[%emt 0:10:44]} 21. Bg4 {[%emt 0:06:43]} Bxe4 {[%emt 0:00:11]} 22. Bxc8 {[%emt 0:02:02]} Rxc8 {[%emt 0:00:35]} 23. Be3 {[%emt 0:00:52]} Ra8 24. Bg5 {[%emt 0:00:30]} Rc8 {[%emt 0:01:00]} 25. Be3 {[%emt 0:00:30]} Bxa1 {[%emt 0:28:08]} 26. Rxa1 {[%emt 0:00:07]} Bc6 {[%emt 0:02:33]} 27. Qd4 {[%emt 0:02:01]} f6 {[%emt 0:03:13]} 28. Re1 {[%emt 0:12:54]} Kf7 {[%emt 0:02:44]} 29. Ra1 {[%emt 0:00:00]} Kg8 {[%emt 0:00:00]} 30. Re1 {[%emt 0:01:00]} Kf7 {[%emt 0:00:00]} 31. Qd2 {[%emt 0:03:20]} Kg8 {[%emt 0:00:00]} 32. Qd4 {[%emt 0:00:00]} Kf7 {[%emt 0:02:24]} 33. Qd2 {[%emt 0:01:00]} d5 {[%emt 0:00:21]} 34. cxd5 {[%emt 0:04:22]} Qxd5 35. Qxd5+ {[%emt 0:00:08]} Bxd5 {[%emt 0:00:11]} 36. Bxa7 {[%emt 0:00:06]} Rc2 {[%emt 0:03:37]} 37. Ra1 {[%emt 0:00:13]} e5 {[%emt 0:00:30]} 38. Bb6 {[%emt 0:00:49]} Rc6 {[%emt 0:02:35]} 39. Ba5 {[%emt 0:00:09]} Ra6 {[%emt 0:00:33]} 40. Bxb4 {[%emt 0:00:06]} Bxb3 {[%emt 0:00:08]} 41. Bd2 {[%emt 0:30:50]} Rxa2 {[%emt 0:30:28]} 42. Rxa2 {[%emt 0:00:06]} Bxa2 {[%emt 0:00:06]} 43. f4 {[%emt 0:00:07]} Ke6 {[%emt 0:00:20]} 44. fxe5 {[%emt 0:00:05]} fxe5 {[%emt 0:00:09]} 45. Kf2 {[%emt 0:00:10]} Kf5 {[%emt 0:00:14]} 46. Ke3 {[%emt 0:00:04]} Ke6 {[%emt 0:00:46]} 47. Kf2 {[%emt 0:00:56]} Kf5 {[%emt 0:00:14]} 48. Ke3 {[%emt 0:00:04]} Bd5 {[%emt 0:00:27]} 49. Kf2 {[%emt 0:00:57]} Bc4 {[%emt 0:03:17]} 50. g3 {[%emt 0:00:17]} Ke4 {[%emt 0:00:20]} 51. h4 {[%emt 0:00:36]} Kf5 {[%emt 0:00:58]} 52. Be3 {[%emt 0:00:00]} Kg4 {[%emt 0:00:00]} 53. Ba7 {[%emt 0:00:00]} Kf5 {[%emt 0:00:42]} 54. Be3 {[%emt 0:00:00]} Kg4 {[%emt 0:00:00]} 55. Ba7 {[%emt 0:00:00]} g5 {[%emt 0:00:00]} 56. hxg5 {[%emt 0:00:00]} Kxg5 {[%emt 0:00:00]} 1/2-1/2

[Event "5th EKA IIFL Investment 2019"]
[Site "Mumbai"]
[Date "2020.01.05"]
[Round "7.52"]
[White "Jeet, Jain"]
[Black "Chilukuri Sai Varshith"]
[Result "1/2-1/2"]
[ECO "B33"]
[WhiteElo "2258"]
[BlackElo "2045"]
[Annotator "ChessBase"]
[PlyCount "105"]
[EventDate "2019.12.30"]
[EventType "swiss"]
[EventCountry "IND"]
[SourceTitle "playchess.com"]
[Source "ChessBase"]
[SourceQuality "1"]
[TimeControl "40/5400+30:1800+30"]

1. e4 {[%emt 0:00:00]} c5 {[%emt 0:00:51]} 2. Nf3 {[%emt 0:00:00]} Nc6 {[%emt 0:00:14]} 3. d4 {[%emt 0:03:14]} cxd4 {[%emt 0:00:05]} 4. Nxd4 {[%emt 0:00:04]} Nf6 {[%emt 0:00:54]} 5. Nc3 {[%emt 0:03:09]} e5 {[%emt 0:00:06]} 6. Ndb5 {[%emt 0:02:14]} d6 {[%emt 0:01:02]} 7. Bg5 {[%emt 0:00:06]} a6 {[%emt 0:00:07]} 8. Na3 {[%emt 0:00:03]} b5 {[%emt 0:00:05]} 9. Nd5 {[%emt 0:00:21]} Be7 {[%emt 0:00:17]} 10. Bxf6 {[%emt 0:00:31]} Bxf6 {[%emt 0:01:28]} 11. c4 {[%emt 0:00:09]} b4 {[%emt 0:00:12]} 12. Nc2 {[%emt 0:00:05]} O-O {[%emt 0:00:05]} 13. h4 {[%emt 0:14:31]} a5 {[%emt 0:02:54]} 14. g3 {[%emt 0:04:16]} Be6 {[%emt 0:10:57]} 15. Bg2 {[%emt 0:04:45]} a4 {[%emt 0:04:02]} 16. Nxf6+ {[%emt 0:02:25]} Qxf6 {[%emt 0:05:11]} 17. b3 {[%emt 0:00:27]} axb3 {[%emt 0:04:50]} 18. axb3 {[%emt 0:00:18]} Rxa1 {[%emt 0:06:44]} 19. Qxa1 Qd8 {[%emt 0:00:12]} 20. Qa4 {[%emt 0:04:04]} Qb6 {[%emt 0:01:20]} 21. O-O {[%emt 0:00:00]} Rb8 {[%emt 0:05:40]} 22. Rd1 {[%emt 0:19:19]} Qc5 {[%emt 0:02:58]} 23. Ra1 {[%emt 0:07:36]} g6 {[%emt 0:11:02]} 24. Qa2 {[%emt 0:01:16]} h5 {[%emt 0:02:19]} 25. Qb2 {[%emt 0:01:31]} Rb7 {[%emt 0:04:17]} 26. Ra8+ {[%emt 0:09:04]} Rb8 {[%emt 0:01:05]} 27. Ra4 {[%emt 0:01:39]} Rb7 {[%emt 0:01:37]} 28. Ra1 {[%emt 0:08:54]} Ra7 {[%emt 0:02:40]} 29. Rd1 {[%emt 0:00:29]} Ra6 {[%emt 0:02:34]} 30. Rd2 {[%emt 0:00:26]} Ra7 {[%emt 0:07:32]} 31. Kh2 {[%emt 0:00:22]} f6 {[%emt 0:03:12]} 32. Bh3 {[%emt 0:00:12]} Bf7 {[%emt 0:03:17]} 33. Qb1 {[%emt 0:01:15]} Kf8 {[%emt 0:00:59]} 34. Kg2 {[%emt 0:02:06]} Ke7 {[%emt 0:00:40]} 35. Qb2 {[%emt 0:00:21]} Ra8 {[%emt 0:01:50]} 36. Rd1 {[%emt 0:00:13]} Ra5 {[%emt 0:02:47]} 37. Kg1 {[%emt 0:06:04]} Qa7 {[%emt 0:01:53]} 38. Qb1 {[%emt 0:01:59]} Qc5 {[%emt 0:01:01]} 39. Bc8 {[%emt 0:01:17]} Nd8 {[%emt 0:00:30]} 40. Bh3 {[%emt 0:00:00]} Nc6 {[%emt 0:00:00]} 41. Qc1 {[%emt 0:00:00]} Ra7 {[%emt 0:25:29]} 42. Qb2 {[%emt 0:29:14]} Ra5 {[%emt 0:05:30]} 43. Qc1 Ra2 {[%emt 0:00:00]} 44. Qb1 {[%emt 0:00:00]} Ra5 {[%emt 0:00:00]} 45. Rd3 {[%emt 0:00:00]} Ra7 {[%emt 0:00:00]} 46. Rd1 {[%emt 0:03:29]} Ra5 {[%emt 0:02:31]} 47. Bc8 {[%emt 0:01:17]} Nd8 {[%emt 0:00:30]} 48. Bh3 {[%emt 0:00:00]} Nc6 {[%emt 0:00:00]} 49. Qc1 {[%emt 0:00:00]} Ra7 {[%emt 0:00:00]} 50. Qb2 {[%emt 0:00:00]} Ra5 {[%emt 0:00:59]} 51. Qc1 {[%emt 0:00:00]} Ra7 {[%emt 0:00:00]} 52. Qb2 {[%emt 0:00:14]} Ra5 {[%emt 0:01:00]} 53. Qc1 {[%emt 0:00:00]} 1/2-1/2

[Event "5th EKA IIFL Investment 2019"]
[Site "Mumbai"]
[Date "2020.01.05"]
[Round "7.53"]
[White "Varun, Vij"]
[Black "Kumar, Gaurav"]
[Result "1-0"]
[ECO "A45"]
[WhiteElo "1964"]
[BlackElo "2120"]
[Annotator "NA"]
[PlyCount "73"]
[EventDate "2019.12.30"]
[EventType "swiss"]
[EventCountry "IND"]
[SourceTitle "playchess.com"]
[Source "ChessBase"]
[SourceQuality "1"]
[TimeControl "40/5400+30:1800+30"]

1. d4 Nf6 2. Bf4 e6 3. e3 c5 4. Nf3 d5 5. Nbd2 Nc6 6. c3 Bd6 7. Bg3 O-O 8. Bb5 Ne7 9. Bd3 b6 10. e4 c4 11. Bxd6 cxd3 12. e5 Ne8 13. Ba3 Nf6 14. Bd6 Ne8 15. Ba3 f6 16. O-O Rf7 17. Nb3 Ba6 18. Re1 Ng6 19. Nc1 Nf4 20. g3 fxe5 21. Rxe5 Ne2+ 22. Kg2 Qf6 23. Re3 Qg6 24. Nxe2 dxe2 25. Qa4 Bd3 26. Ne5 Be4+ 27. f3 Qg5 28. Rxe2 Rxf3 29. Nxf3 Bxf3+ 30. Kxf3 Qh5+ 31. Ke3 Nf6 32. Rf1 Qg5+ 33. Rf4 e5 34. dxe5 Ng4+ 35. Kd2 Nxe5 36. h4 Nf3+ 37. Kd1 1-0

[Event "5th EKA IIFL Investment 2019"]
[Site "Mumbai"]
[Date "2020.01.05"]
[Round "7.55"]
[White "Tarini Goyal"]
[Black "Navalgund, Niranjan"]
[Result "1-0"]
[ECO "E63"]
[WhiteElo "2098"]
[BlackElo "2246"]
[Annotator "ChessBase"]
[PlyCount "143"]
[EventDate "2019.12.30"]
[EventType "swiss"]
[EventCountry "IND"]
[SourceTitle "playchess.com"]
[Source "ChessBase"]
[SourceQuality "1"]
[TimeControl "40/5400+30:1800+30"]

1. d4 Nf6 2. Nf3 g6 3. c4 Bg7 4. g3 O-O 5. Bg2 d6 6. Nc3 Nc6 7. O-O a6 8. b3 Rb8 9. d5 Na5 10. Bg5 c5 11. dxc6 bxc6 12. c5 dxc5 13. Bf4 Rb7 14. Na4 Nd5 15. Be5 f6 16. Bb2 Rb5 17. Rc1 Nb7 18. Ne1 Bh6 19. e3 Qd6 20. Qe2 Rd8 21. Nc2 e5 22. Rcd1 Qe7 23. Na3 Be6 24. Nxb5 cxb5 25. Nc3 Nxc3 26. Rxd8+ Nxd8 27. Bxc3 c4 28. Qd2 Nf7 29. bxc4 Bxc4 30. Rd1 Bf8 31. Bd5 Bxd5 32. Qxd5 b4 33. Bb2 Qd6 34. Qxd6 Nxd6 35. Rc1 a5 36. a3 b3 37. a4 Ne4 38. Kf1 Bb4 39. Ke2 Nc5 40. Ra1 Kf7 41. f3 Ke6 42. e4 f5 43. Ke3 h5 44. exf5+ gxf5 45. h3 Kd5 46. g4 hxg4 47. hxg4 f4+ 48. Ke2 Ke6 49. g5 Kf5 50. g6 Kxg6 51. Bxe5 Kf5 52. Bd4 Ne6 53. Kd3 Nxd4 54. Kxd4 b2 55. Rb1 Bd6 56. Kd3 Be5 57. Kc2 Ke6 58. Rd1 Bf6 59. Rd3 Bg7 60. Rd8 Be5 61. Ra8 Bc3 62. Rb8 Bb4 63. Rb5 Kd6 64. Kxb2 Kc6 65. Rf5 Bd6 66. Rxa5 Bc7 67. Rf5 Bb8 68. Kb3 Bc7 69. Kc4 Bb8 70. Kd4 Ba7+ 71. Ke4 Bb8 72. Rxf4 {Kd5+} 1-0

[Event "5th EKA IIFL Investment 2019"]
[Site "Mumbai"]
[Date "2020.01.05"]
[Round "7.56"]
[White "Wagh Suyog"]
[Black "Shiva Pavan Teja Sharma U"]
[Result "1-0"]
[ECO "E12"]
[WhiteElo "2219"]
[BlackElo "2051"]
[Annotator "NA"]
[PlyCount "67"]
[EventDate "2019.12.30"]
[EventType "swiss"]
[EventCountry "IND"]
[SourceTitle "playchess.com"]
[Source "ChessBase"]
[SourceQuality "1"]
[TimeControl "40/5400+30:1800+30"]

1. d4 {[%emt 0:00:00]} Nf6 {[%emt 0:00:00]} 2. c4 {[%emt 0:00:00]} e6 {[%emt 0:00:18]} 3. Nf3 {[%emt 0:01:02]} b6 {[%emt 0:00:43]} 4. a3 {[%emt 0:01:56]} Bb7 {[%emt 0:00:35]} 5. Nc3 {[%emt 0:00:08]} d5 {[%emt 0:00:23]} 6. Bg5 {[%emt 0:00:35]} dxc4 {[%emt 0:01:44]} 7. e4 {[%emt 0:11:05]} Be7 {[%emt 0:01:00]} 8. Bxf6 {[%emt 0:10:14]} Bxf6 {[%emt 0:00:07]} 9. Bxc4 O-O {[%emt 0:01:01]} 10. e5 {[%emt 0:08:46]} Be7 {[%emt 0:00:08]} 11. d5 {[%emt 0:07:30]} exd5 {[%emt 0:01:41]} 12. Bxd5 {[%emt 0:04:33]} Bxd5 {[%emt 0:00:20]} 13. Qxd5 {[%emt 0:03:55]} Na6 {[%emt 0:06:16]} 14. O-O {[%emt 0:09:22]} Qe8 {[%emt 0:08:52]} 15. Qc4 {[%emt 0:07:22]} Nc5 {[%emt 0:01:20]} 16. Nd4 {[%emt 0:01:00]} c6 {[%emt 0:04:28]} 17. Rad1 {[%emt 0:00:11]} b5 {[%emt 0:00:50]} 18. Qe2 {[%emt 0:00:20]} a5 {[%emt 0:00:58]} 19. Ne4 {[%emt 0:05:15]} Nxe4 {[%emt 0:04:44]} 20. Qxe4 {[%emt 0:00:01]} c5 {[%emt 0:01:11]} 21. Nf5 {[%emt 0:01:32]} b4 {[%emt 0:03:29]} 22. Qb7 {[%emt 0:05:33]} Bg5 {[%emt 0:01:07]} 23. f4 {[%emt 0:00:45]} Bh6 {[%emt 0:00:20]} 24. Rd6 {[%emt 0:04:37]} bxa3 {[%emt 0:04:07]} 25. bxa3 {[%emt 0:01:34]} Qa4 {[%emt 0:00:42]} 26. Qf3 {[%emt 0:02:27]} Kh8 {[%emt 0:00:55]} 27. Nxh6 gxh6 {[%emt 0:00:39]} 28. Rxh6 {[%emt 0:11:32]} Qc2 {[%emt 0:02:03]} 29. f5 {[%emt 0:01:14]} Rg8 {[%emt 0:00:38]} 30. g3 {[%emt 0:00:52]} Rab8 {[%emt 0:00:42]} 31. e6 {[%emt 0:01:27]} Rb3 {[%emt 0:02:46]} 32. Rxh7+ {[%emt 0:00:33]} Kxh7 {[%emt 0:00:33]} 33. Qh5+ {[%emt 0:00:03]} Kg7 {[%emt 0:00:37]} 34. f6+ {[%emt 0:00:18]} 1-0

[Event "5th EKA IIFL Investment 2019"]
[Site "Mumbai"]
[Date "2020.01.05"]
[Round "7.57"]
[White "Sarbojit Paul"]
[Black "Praveen Kumar C"]
[Result "0-1"]
[ECO "B28"]
[WhiteElo "2084"]
[BlackElo "2194"]
[Annotator "NA"]
[PlyCount "66"]
[EventDate "2019.12.30"]
[EventType "swiss"]
[EventCountry "IND"]
[SourceTitle "playchess.com"]
[Source "ChessBase"]
[SourceQuality "1"]
[TimeControl "40/5400+30:1800+30"]

1. e4 c5 2. Nf3 a6 3. c4 e6 4. d4 cxd4 5. Nxd4 Qc7 6. Bd3 Nf6 7. Qe2 d6 8. O-O Nbd7 9. b3 b6 10. Bb2 Bb7 11. Nc3 Be7 12. Rae1 O-O 13. Kh1 Rfe8 14. f4 Rad8 15. Bb1 Nf8 16. Qf2 N6d7 17. Nf3 Ng6 18. Qg3 Bf6 19. Ng5 Rc8 20. h4 e5 21. fxe5 Bxe5 22. Qf2 Nf6 23. Nd5 Bxd5 24. exd5 Bxb2 25. Qxb2 Rxe1 26. Rxe1 Nxh4 27. g3 Ng6 28. Qh2 Qd7 29. Rf1 Qg4 30. Bf5 Qxg5 31. Bxc8 Ne4 32. Rg1 Qe3 33. Kg2 Qe2+ {Kf1} 0-1

[Event "5th EKA IIFL Investment 2019"]
[Site "Mumbai"]
[Date "2020.01.05"]
[Round "7.58"]
[White "Anadkat Kartavya"]
[Black "Jubin Jimmy"]
[Result "1/2-1/2"]
[ECO "B13"]
[WhiteElo "2082"]
[BlackElo "2193"]
[Annotator "NA"]
[PlyCount "97"]
[EventDate "2019.12.30"]
[EventType "swiss"]
[EventCountry "IND"]
[SourceTitle "playchess.com"]
[Source "ChessBase"]
[SourceQuality "1"]
[TimeControl "40/5400+30:1800+30"]

1. e4 c6 2. d4 d5 3. exd5 cxd5 4. Bd3 Nc6 5. c3 Qc7 6. Ne2 Bg4 7. O-O e6 8. Qe1 Bxe2 9. Qxe2 Bd6 10. Qg4 Bf8 11. Nd2 Nf6 12. Qe2 Bd6 13. g3 O-O 14. f4 Rae8 15. Nf3 Nd7 16. Ne5 f5 17. g4 fxg4 18. Qxg4 Nf6 19. Qh3 Qc8 20. Bd2 Ne7 21. Be1 Nf5 22. Bh4 Ne4 23. Rae1 Bxe5 24. fxe5 Qc6 25. Qg4 Qb6 26. Bxe4 dxe4 27. Re2 Qa6 28. Rfe1 e3 29. Rg2 Kh8 30. Bg5 Rf7 31. h3 Qxa2 32. Bxe3 Ref8 33. Kh2 Qc4 34. Bg1 Qd5 35. Qe4 Qd8 36. Bf2 Ne7 37. Bh4 Rf4 38. Bxe7 Qxe7 39. Qe3 Rf3 40. Qg5 Qxg5 41. Rxg5 Rd3 42. Reg1 g6 43. R5g3 Rd2+ 44. R1g2 Rff2 45. Rxf2 Rxf2+ 46. Rg2 Rxg2+ 47. Kxg2 b5 48. b4 Kg7 49. Kg3 1/2-1/2

[Event "5th EKA IIFL Investment 2019"]
[Site "Mumbai"]
[Date "2020.01.05"]
[Round "7.59"]
[White "Rathneesh R"]
[Black "Rakshitta Ravi"]
[Result "1/2-1/2"]
[ECO "A20"]
[WhiteElo "2064"]
[BlackElo "2267"]
[Annotator "ChessBase"]
[PlyCount "156"]
[EventDate "2019.12.30"]
[EventType "swiss"]
[EventCountry "IND"]
[SourceTitle "playchess.com"]
[Source "ChessBase"]
[SourceQuality "1"]
[TimeControl "40/5400+30:1800+30"]

1. c4 {[%emt 0:00:00]} e5 {[%emt 0:00:15]} 2. g3 {[%emt 0:00:16]} Nf6 {[%emt 0:00:31]} 3. Bg2 {[%emt 0:01:01]} d5 {[%emt 0:01:22]} 4. cxd5 {[%emt 0:00:30]} Nxd5 {[%emt 0:00:08]} 5. Nc3 {[%emt 0:00:59]} Nb6 {[%emt 0:00:21]} 6. Nf3 {[%emt 0:01:04]} Nc6 {[%emt 0:00:06]} 7. O-O {[%emt 0:00:23]} Be7 {[%emt 0:00:06]} 8. Rb1 {[%emt 0:00:35]} O-O {[%emt 0:03:03]} 9. b4 {[%emt 0:02:12]} a5 {[%emt 0:04:13]} 10. b5 {[%emt 0:07:11]} Nd4 {[%emt 0:00:54]} 11. d3 {[%emt 0:14:03]} f6 {[%emt 0:04:10]} 12. Nxd4 {[%emt 0:08:22]} exd4 {[%emt 0:00:15]} 13. Qb3+ {[%emt 0:01:57]} Kh8 {[%emt 0:00:19]} 14. Na4 {[%emt 0:01:08]} Re8 {[%emt 0:14:19]} 15. Bf4 {[%emt 0:21:52]} Bd6 {[%emt 0:08:32]} 16. Nxb6 {[%emt 0:10:14]} cxb6 {[%emt 0:00:48]} 17. Qd5 {[%emt 0:01:13]} Bc5 {[%emt 0:02:39]} 18. Qxd8 {[%emt 0:04:26]} Rxd8 {[%emt 0:00:16]} 19. e3 {[%emt 0:05:35]} dxe3 {[%emt 0:23:01]} 20. Bxe3 {[%emt 0:00:59]} Bxe3 {[%emt 0:05:05]} 21. fxe3 {[%emt 0:00:45]} Rxd3 {[%emt 0:03:49]} 22. Rbd1 {[%emt 0:06:02]} Bf5 {[%emt 0:05:36]} 23. Bxb7 {[%emt 0:02:20]} Rb8 {[%emt 0:00:55]} 24. Bc6 {[%emt 0:06:41]} Rxd1 {[%emt 0:02:56]} 25. Rxd1 {[%emt 0:00:03]} Kg8 {[%emt 0:00:06]} 26. Bd7 {[%emt 0:02:27]} Bg6 {[%emt 0:03:53]} 27. Rd6 {[%emt 0:00:40]} Kf8 {[%emt 0:01:37]} 28. Bh3 {[%emt 0:00:29]} Be8 {[%emt 0:00:25]} 29. a4 {[%emt 0:00:31]} Bf7 {[%emt 0:03:49]} 30. Bg4 {[%emt 0:00:27]} Ke8 {[%emt 0:01:31]} 31. Kf2 {[%emt 0:00:32]} Bb3 {[%emt 0:01:32]} 32. Bd1 {[%emt 0:00:31]} Ke7 {[%emt 0:00:25]} 33. Rd4 {[%emt 0:00:12]} Be6 {[%emt 0:00:10]} 34. Bc2 {[%emt 0:00:40]} g6 {[%emt 0:01:02]} 35. Rh4 {[%emt 0:00:32]} Bg8 {[%emt 0:00:03]} 36. Bd3 {[%emt 0:00:35]} Rc8 {[%emt 0:04:05]} 37. Re4+ {[%emt 0:00:31]} Kd6 {[%emt 0:02:08]} 38. Rd4+ {[%emt 0:00:24]} Ke5 {[%emt 0:01:40]} 39. Re4+ {[%emt 0:00:31]} Kd5 {[%emt 0:00:48]} 40. Rd4+ {[%emt 0:00:00]} Kc5 {[%emt 0:00:00]} 41. Ke2 {[%emt 0:10:07]} Be6 {[%emt 0:02:56]} 42. Kd2 {[%emt 0:06:04]} Rc7 {[%emt 0:00:28]} 43. Kc3 {[%emt 0:01:41]} Rd7 {[%emt 0:00:09]} 44. Rf4 {[%emt 0:01:20]} f5 {[%emt 0:02:50]} 45. Bc4 {[%emt 0:01:56]} Re7 {[%emt 0:01:43]} 46. Bxe6 {[%emt 0:02:10]} Rxe6 {[%emt 0:00:02]} 47. Rc4+ {[%emt 0:02:02]} Kd5 {[%emt 0:01:15]} 48. Rd4+ {[%emt 0:01:02]} Ke5 {[%emt 0:00:37]} 49. Rc4 {[%emt 0:01:22]} g5 {[%emt 0:02:17]} 50. h4 {[%emt 0:04:29]} Rg6 {[%emt 0:01:00]} 51. Kd2 {[%emt 0:02:14]} Kd5 {[%emt 0:06:35]} 52. Rd4+ {[%emt 0:01:50]} Kc5 {[%emt 0:00:01]} 53. hxg5 {[%emt 0:00:41]} Rxg5 {[%emt 0:00:52]} 54. Rh4 {[%emt 0:00:12]} Rxg3 {[%emt 0:01:41]} 55. Rxh7 {[%emt 0:00:25]} Kb4 {[%emt 0:02:06]} 56. Rh6 {[%emt 0:00:47]} Kxa4 {[%emt 0:00:02]} 57. Rxb6 {[%emt 0:00:04]} Kb3 {[%emt 0:00:52]} 58. Ra6 {[%emt 0:01:02]} a4 {[%emt 0:00:47]} 59. b6 {[%emt 0:00:28]} Rg4 {[%emt 0:01:33]} 60. Ra5 {[%emt 0:00:35]} Rb4 {[%emt 0:00:24]} 61. Kc1 {[%emt 0:00:33]} Rxb6 {[%emt 0:03:29]} 62. Rxf5 {[%emt 0:00:18]} Ka2 {[%emt 0:00:06]} 63. Rf2+ {[%emt 0:00:42]} Ka1 {[%emt 0:00:04]} 64. Rf8 {[%emt 0:00:31]} Rc6+ {[%emt 0:00:26]} 65. Kd2 {[%emt 0:00:04]} a3 {[%emt 0:00:21]} 66. Rb8 {[%emt 0:00:50]} a2 {[%emt 0:01:13]} 67. Rb7 {[%emt 0:00:27]} Rh6 {[%emt 0:00:43]} 68. Kc2 {[%emt 0:00:22]} Rh2+ {[%emt 0:00:11]} 69. Kc1 {[%emt 0:00:30]} Rh1+ {[%emt 0:00:04]} 70. Kc2 {[%emt 0:00:03]} Rb1 {[%emt 0:00:29]} 71. Rc7 {[%emt 0:01:00]} Rb5 {[%emt 0:01:16]} 72. Kc1 {[%emt 0:00:17]} Re5 {[%emt 0:00:03]} 73. Kc2 {[%emt 0:00:47]} Rxe3 {[%emt 0:00:20]} 74. Rb7 {[%emt 0:00:29]} Re1 {[%emt 0:00:48]} 75. Rb8 {[%emt 0:00:25]} Rb1 {[%emt 0:00:10]} 76. Rc8 {[%emt 0:00:16]} Rb2+ {[%emt 0:00:15]} 77. Kc1 {[%emt 0:00:03]} Rb1+ {[%emt 0:00:19]} 78. Kc2 {[%emt 0:00:02]} Rb2+ {[%emt 0:00:07]} 1/2-1/2

[Event "5th EKA IIFL Investment 2019"]
[Site "Mumbai"]
[Date "2020.01.06"]
[Round "8.4"]
[White "Bogdanovich, Stanislav"]
[Black "Nitin, S.."]
[Result "1-0"]
[ECO "E71"]
[WhiteElo "2562"]
[BlackElo "2329"]
[Annotator "RC"]
[PlyCount "69"]
[EventDate "2019.12.30"]
[EventType "swiss"]
[EventCountry "IND"]
[SourceTitle "playchess.com"]
[Source "ChessBase"]
[SourceQuality "1"]
[TimeControl "40/5400+30:1800+30"]

1. d4 {[%emt 0:02:42]} Nf6 {[%emt 0:00:05]} 2. c4 {[%emt 0:00:03]} g6 {[%emt 0:00:15]} 3. Nc3 {[%emt 0:00:03]} Bg7 {[%emt 0:00:09]} 4. e4 {[%emt 0:00:04]} d6 {[%emt 0:00:10]} 5. h3 {[%emt 0:00:06]} O-O {[%emt 0:00:20]} 6. Be3 {[%emt 0:00:04]} Na6 {[%emt 0:02:51]} 7. Nf3 {[%emt 0:00:26]} c6 {[%emt 0:00:14]} 8. g4 {[%emt 0:00:23]} e5 {[%emt 0:03:05]} 9. d5 {[%emt 0:00:05]} Nc5 {[%emt 0:01:16]} 10. Nd2 {[%emt 0:02:19]} a5 {[%emt 0:05:15]} 11. Be2 {[%emt 0:02:13]} Bd7 {[%emt 0:02:34]} 12. Rc1 {[%emt 0:01:38]} a4 {[%emt 0:01:12]} 13. g5 {[%emt 0:06:29]} Ne8 {[%emt 0:02:23]} 14. h4 {[%emt 0:00:12]} Nc7 {[%emt 0:07:37]} 15. h5 {[%emt 0:02:11]} N7a6 {[%emt 0:07:52]} 16. Nf1 {[%emt 0:13:45]} Qa5 {[%emt 0:11:59]} 17. Qd2 {[%emt 0:02:28]} a3 {[%emt 0:06:12]} 18. b3 {[%emt 0:02:36]} Nb4 {[%emt 0:00:16]} 19. Ng3 {[%emt 0:03:39]} cxd5 {[%emt 0:19:47]} 20. h6 {[%emt 0:08:02]} Bh8 {[%emt 0:09:10]} 21. Nxd5 {[%emt 0:00:03]} Nxd5 {[%emt 0:00:04]} 22. Qxa5 {[%emt 0:01:16]} Rxa5 {[%emt 0:00:09]} 23. cxd5 {[%emt 0:01:42]} Raa8 {[%emt 0:02:20]} 24. Bxc5 {[%emt 0:02:54]} dxc5 {[%emt 0:00:27]} 25. Rxc5 {[%emt 0:00:03]} Rfc8 {[%emt 0:00:21]} 26. Rxc8+ {[%emt 0:01:12]} Rxc8 {[%emt 0:00:04]} 27. Kd2 {[%emt 0:00:16]} f6 {[%emt 0:00:12]} 28. Nf1 {[%emt 0:05:33]} fxg5 {[%emt 0:00:37]} 29. Ne3 {[%emt 0:00:06]} Bf6 {[%emt 0:04:19]} 30. Bg4 {[%emt 0:01:47]} Bxg4 {[%emt 0:00:23]} 31. Nxg4 {[%emt 0:00:04]} Be7 {[%emt 0:00:06]} 32. Rc1 {[%emt 0:01:28]} Rxc1 {[%emt 0:00:17]} 33. Kxc1 {[%emt 0:00:04]} Bd6 {[%emt 0:00:04]} 34. Kc2 {[%emt 0:00:57]} b5 {[%emt 0:03:43]} 35. Kc3 {[%emt 0:02:21]} 1-0